[Event "DVM U12w 2024"]
[Site "Bad Homburg"]
[Date "2024.12.28"]
[Round "4"]
[White "Klymenko, Stefaniia"]
[Black "Senthilkumar, Vasanthi"]
[Result "1-0"]
[ECO "C50"]
[WhiteElo "785"]
[BlackElo "818"]
[Annotator "NA RC"]
[PlyCount "137"]
[EventDate "2024.12.23"]
[EventType "team-tourn"]
[EventRounds "7"]
[EventCountry "GER"]
[SourceTitle "playchess.com"]
[Source "ChessBase"]
[SourceQuality "1"]
[TimeControl "40/5400+30:1800+30"]

1. e4 {[%emt 0:00:03]} e5 {[%emt 0:00:04]} 2. Nf3 {[%emt 0:00:05]} Nc6 {[%emt 0:00:09]} 3. Bc4 {[%emt 0:00:09]} Nf6 {[%emt 0:00:12]} 4. Nc3 {[%emt 0:00:05]} Bc5 {[%emt 0:00:13]} 5. d3 {[%emt 0:00:06]} h6 {[%emt 0:00:10]} 6. Be3 {[%emt 0:00:04]} Bxe3 {[%emt 0:00:30]} 7. fxe3 {[%emt 0:00:06]} d6 {[%emt 0:00:27]} 8. O-O {[%emt 0:00:17]} Bg4 {[%emt 0:00:08]} 9. h3 {[%emt 0:00:08]} Bh5 {[%emt 0:00:11]} 10. Nd5 {[%emt 0:04:36]} O-O {[%emt 0:00:35]} 11. d4 {[%emt 0:01:12]} Nxe4 {[%emt 0:01:44]} 12. Qe1 {[%emt 0:04:18]} Nf6 {[%emt 0:02:19]} 13. Nxf6+ {[%emt 0:01:54]} Qxf6 {[%emt 0:00:20]} 14. d5 {[%emt 0:01:35]} Nb4 {[%emt 0:00:19]} 15. Qxb4 {[%emt 0:00:37]} Qg6 {[%emt 0:02:06]} 16. Bd3 {[%emt 0:01:48]} c5 {[%emt 0:01:30]} 17. Bxg6 {[%emt 0:01:07]} cxb4 {[%emt 0:00:28]} 18. Bxh5 {[%emt 0:00:12]} Rac8 {[%emt 0:00:44]} 19. Rac1 {[%emt 0:01:36]} Rc5 {[%emt 0:00:46]} 20. e4 {[%emt 0:00:30]} Rc4 {[%emt 0:00:25]} 21. Nd2 {[%emt 0:01:11]} Rd4 {[%emt 0:01:00]} 22. Rf2 {[%emt 0:00:50]} Rc8 {[%emt 0:03:26]} 23. Rcf1 {[%emt 0:00:25]} f6 {[%emt 0:02:25]} 24. Nb3 {[%emt 0:02:52]} Rdc4 {[%emt 0:01:07]} 25. Na5 {[%emt 0:00:49]} Rxc2 {[%emt 0:00:17]} 26. Rxc2 {[%emt 0:00:09]} Rxc2 {[%emt 0:00:09]} 27. Nxb7 {[%emt 0:00:09]} Rxb2 {[%emt 0:00:36]} 28. Rf2 {[%emt 0:00:22]} Rb1+ {[%emt 0:00:30]} 29. Rf1 {[%emt 0:00:25]} Rb2 {[%emt 0:01:21]} 30. Nxd6 {[%emt 0:00:35]} Rxa2 {[%emt 0:00:26]} 31. Rb1 {[%emt 0:01:01]} Ra4 {[%emt 0:00:17]} 32. Nc4 {[%emt 0:00:15]} a5 {[%emt 0:00:40]} 33. d6 {[%emt 0:00:08]} Kf8 {[%emt 0:00:54]} 34. d7 {[%emt 0:00:25]} Ke7 {[%emt 0:00:14]} 35. Rd1 {[%emt 0:00:14]} Kd8 {[%emt 0:00:47]} 36. Nb6 {[%emt 0:00:40]} b3 {[%emt 0:00:17]} 37. Nc8 {[%emt 0:00:08]} b2 {[%emt 0:00:52]} 38. Nd6 {[%emt 0:00:44]} g6 {[%emt 0:03:40]} 39. Nb7+ {[%emt 0:00:28]} Kc7 {[%emt 0:00:17]} 40. d8=Q+ {[%emt 0:00:18]} Kxb7 {[%emt 0:00:31]} 41. Rb1 {[%emt 0:30:37]} Rb4 {[%emt 0:30:28]} 42. Qd2 {[%emt 0:00:17]} gxh5 {[%emt 0:01:11]} 43. Rxb2 {[%emt 0:00:07]} Rxb2 {[%emt 0:00:31]} 44. Qxb2+ {[%emt 0:00:07]} Kc6 {[%emt 0:00:19]} 45. g4 {[%emt 0:00:50]} hxg4 {[%emt 0:00:22]} 46. hxg4 {[%emt 0:00:06]} Kd6 {[%emt 0:00:15]} 47. Qb5 {[%emt 0:01:02]} Ke6 {[%emt 0:00:51]} 48. Qxa5 {[%emt 0:00:09]} Kd6 {[%emt 0:00:50]} 49. Qd2+ {[%emt 0:00:13]} Kc5 {[%emt 0:00:11]} 50. Qxh6 {[%emt 0:00:14]} Kd4 {[%emt 0:00:18]} 51. Qxf6 {[%emt 0:00:33]} Kxe4 {[%emt 0:00:11]} 52. g5 {[%emt 0:00:12]} Kd5 {[%emt 0:00:13]} 53. g6 {[%emt 0:00:08]} e4 {[%emt 0:00:07]} 54. g7 {[%emt 0:00:12]} e3 {[%emt 0:00:19]} 55. Qf4 {[%emt 0:00:09]} e2 {[%emt 0:00:34]} 56. Qf2 {[%emt 0:00:18]} Ke6 {[%emt 0:00:03]} 57. Qxe2+ {[%emt 0:00:11]} Kf7 {[%emt 0:00:07]} 58. Qg2 {[%emt 0:00:10]} Kg8 {[%emt 0:00:24]} 59. Qa2+ {[%emt 0:00:29]} Kxg7 {[%emt 0:00:19]} 60. Kg2 {[%emt 0:00:16]} Kf6 {[%emt 0:00:24]} 61. Kf3 {[%emt 0:00:01]} Kg6 {[%emt 0:00:10]} 62. Qa5 {[%emt 0:00:28]} Kh7 {[%emt 0:00:27]} 63. Kg4 {[%emt 0:00:10]} Kg7 {[%emt 0:00:12]} 64. Kg5 {[%emt 0:00:11]} Kf8 {[%emt 0:00:28]} 65. Qa7 {[%emt 0:00:20]} Ke8 {[%emt 0:00:13]} 66. Kf6 {[%emt 0:01:02]} Kd8 {[%emt 0:00:14]} 67. Ke6 {[%emt 0:00:47]} Kc8 {[%emt 0:00:08]} 68. Kd6 {[%emt 0:00:37]} Kd8 {[%emt 0:00:18]} 69. Qd7# {[%emt 0:00:21]} 1-0

[Event "DVM U12w 2024"]
[Site "Bad Homburg"]
[Date "2024.12.28"]
[Round "4"]
[White "Lorenz, Mina"]
[Black "Scarlat-Timofte, Elena"]
[Result "1-0"]
[ECO "C50"]
[WhiteElo "776"]
[BlackElo "1024"]
[Annotator "NA RC"]
[PlyCount "39"]
[EventDate "2024.12.23"]
[EventType "team-tourn"]
[EventRounds "7"]
[EventCountry "GER"]
[SourceTitle "playchess.com"]
[Source "ChessBase"]
[SourceQuality "1"]
[TimeControl "40/5400+30:1800+30"]

1. e4 {[%emt 0:00:03]} e5 {[%emt 0:00:05]} 2. Nf3 {[%emt 0:00:09]} Nc6 {[%emt 0:00:04]} 3. Bc4 {[%emt 0:00:07]} Nf6 {[%emt 0:00:10]} 4. d3 {[%emt 0:00:13]} Bc5 {[%emt 0:00:25]} 5. Nc3 {[%emt 0:01:11]} O-O {[%emt 0:00:55]} 6. Bg5 {[%emt 0:00:13]} d6 {[%emt 0:01:03]} 7. Qd2 {[%emt 0:01:10]} Na5 {[%emt 0:02:03]} 8. Nd5 {[%emt 0:08:41]} Nc6 {[%emt 0:06:28]} 9. Nxf6+ {[%emt 0:01:42]} gxf6 {[%emt 0:00:48]} 10. Bh6 {[%emt 0:01:31]} Re8 {[%emt 0:00:44]} 11. h3 {[%emt 0:02:09]} Bb4 {[%emt 0:02:32]} 12. c3 {[%emt 0:01:27]} Ba5 {[%emt 0:05:12]} 13. g4 {[%emt 0:01:06]} Qd7 {[%emt 0:13:15]} 14. g5 {[%emt 0:01:41]} f5 {[%emt 0:00:53]} 15. g6 {[%emt 0:03:06]} hxg6 {[%emt 0:01:43]} 16. Rg1 {[%emt 0:00:00]} Kh8 {[%emt 0:01:40]} 17. Qg5 {[%emt 0:01:13]} Rg8 {[%emt 0:04:10]} 18. Nh4 {[%emt 0:04:14]} Ne7 {[%emt 0:02:33]} 19. Bxf7 {[%emt 0:04:23]} Kh7 {[%emt 0:03:09]} 20. Qf6 {[%emt 0:11:44]} 1-0

[Event "DVM U12w 2024"]
[Site "Bad Homburg"]
[Date "2024.12.28"]
[Round "4"]
[White "Markl, Paula"]
[Black "Lachenmaier, Alica"]
[Result "0-1"]
[ECO "B24"]
[WhiteElo "759"]
[BlackElo "824"]
[Annotator "NA RC"]
[PlyCount "146"]
[EventDate "2024.12.23"]
[EventType "team-tourn"]
[EventRounds "7"]
[EventCountry "GER"]
[SourceTitle "playchess.com"]
[Source "ChessBase"]
[SourceQuality "1"]
[TimeControl "40/5400+30:1800+30"]

1. e4 {[%emt 0:00:02]} c5 {[%emt 0:00:17]} 2. Nf3 {[%emt 0:00:10]} Nc6 {[%emt 0:00:07]} 3. Nc3 {[%emt 0:00:10]} g6 {[%emt 0:00:09]} 4. g3 {[%emt 0:00:08]} Bg7 {[%emt 0:01:30]} 5. Bg2 {[%emt 0:00:09]} e6 {[%emt 0:00:17]} 6. O-O {[%emt 0:00:13]} d5 {[%emt 0:00:18]} 7. d3 {[%emt 0:00:50]} Nge7 {[%emt 0:00:39]} 8. Bf4 {[%emt 0:00:50]} e5 {[%emt 0:00:48]} 9. Bg5 {[%emt 0:01:12]} f6 {[%emt 0:00:16]} 10. Bd2 {[%emt 0:00:19]} d4 {[%emt 0:00:19]} 11. Ne2 {[%emt 0:01:19]} O-O {[%emt 0:00:28]} 12. a3 {[%emt 0:00:11]} Qb6 {[%emt 0:04:59]} 13. Rb1 {[%emt 0:00:43]} Be6 {[%emt 0:00:45]} 14. Nc1 {[%emt 0:00:23]} Rad8 {[%emt 0:07:07]} 15. Nb3 {[%emt 0:01:06]} Rd6 {[%emt 0:00:52]} 16. a4 {[%emt 0:01:45]} a5 {[%emt 0:04:45]} 17. Qc1 {[%emt 0:01:38]} Kf7 {[%emt 0:02:59]} 18. Bh6 {[%emt 0:00:21]} f5 {[%emt 0:00:31]} 19. Bh3 {[%emt 0:02:25]} Bxh6 {[%emt 0:00:39]} 20. Qxh6 {[%emt 0:00:16]} Ke8 {[%emt 0:00:09]} 21. Ng5 {[%emt 0:01:31]} Ng8 {[%emt 0:00:22]} 22. Qg7 {[%emt 0:00:54]} Rd7 {[%emt 0:00:27]} 23. Qh8 {[%emt 0:04:09]} Nf6 {[%emt 0:01:51]} 24. Qxf8+ {[%emt 0:02:38]} Kxf8 {[%emt 0:00:16]} 25. Nxe6+ {[%emt 0:01:19]} Ke7 {[%emt 0:00:37]} 26. Ng5 {[%emt 0:00:56]} h6 {[%emt 0:00:37]} 27. Nf3 {[%emt 0:00:29]} Qb4 {[%emt 0:01:12]} 28. Nh4 {[%emt 0:00:19]} Kf7 {[%emt 0:00:47]} 29. Ra1 {[%emt 0:00:11]} Rd6 {[%emt 0:00:23]} 30. Ra3 {[%emt 0:00:46]} g5 {[%emt 0:00:17]} 31. Nxf5 {[%emt 0:00:28]} Rd8 {[%emt 0:00:29]} 32. Nxh6+ {[%emt 0:00:21]} Kg6 {[%emt 0:00:34]} 33. Nf5 {[%emt 0:00:26]} g4 {[%emt 0:01:23]} 34. Nh4+ {[%emt 0:01:13]} Kg5 {[%emt 0:00:00]} 35. f4+ {[%emt 0:00:34]} Kh6 {[%emt 0:00:26]} 36. Nf5+ {[%emt 0:00:24]} Kg6 {[%emt 0:00:28]} 37. Nh4+ {[%emt 0:01:10]} Kf7 {[%emt 0:00:08]} 38. Bg2 {[%emt 0:01:26]} c4 {[%emt 0:00:25]} 39. fxe5 {[%emt 0:00:38]} Nxe5 {[%emt 0:00:14]} 40. Rf5 {[%emt 0:00:32]} Ned7 {[%emt 0:00:22]} 41. e5 {[%emt 0:30:40]} cxb3 {[%emt 0:30:16]} 42. Bd5+ {[%emt 0:00:50]} Kg7 {[%emt 0:00:35]} 43. Rg5+ {[%emt 0:00:36]} Kf8 {[%emt 0:00:44]} 44. Ng6+ {[%emt 0:03:22]} Ke8 {[%emt 0:00:23]} 45. exf6 {[%emt 0:02:11]} Qe1+ {[%emt 0:00:16]} 46. Kg2 {[%emt 0:01:25]} Qe2+ {[%emt 0:00:19]} 47. Kg1 {[%emt 0:00:31]} Qe3+ {[%emt 0:00:24]} 48. Kg2 {[%emt 0:00:45]} Qe2+ {[%emt 0:00:08]} 49. Kg1 {[%emt 0:00:28]} Nxf6 {[%emt 0:00:29]} 50. Re5+ {[%emt 0:00:41]} Qxe5 {[%emt 0:00:30]} 51. Nxe5 {[%emt 0:00:09]} Rxd5 {[%emt 0:00:07]} 52. Nc4 {[%emt 0:01:25]} bxc2 {[%emt 0:00:13]} 53. Ra1 {[%emt 0:00:20]} Ke7 {[%emt 0:00:59]} 54. Rc1 {[%emt 0:00:47]} b5 {[%emt 0:00:37]} 55. Re1+ {[%emt 0:00:35]} Kd8 {[%emt 0:00:26]} 56. Nb6 {[%emt 0:00:17]} Rd6 {[%emt 0:01:41]} 57. Na8 {[%emt 0:01:08]} Rc6 {[%emt 0:00:19]} 58. axb5 {[%emt 0:00:35]} c1=Q {[%emt 0:00:26]} 59. Rxc1 {[%emt 0:01:01]} Rxc1+ {[%emt 0:00:08]} 60. Kf2 {[%emt 0:00:19]} Rc2+ {[%emt 0:00:06]} 61. Ke1 {[%emt 0:00:11]} Rxb2 {[%emt 0:00:08]} 62. b6 {[%emt 0:00:13]} Nd5 {[%emt 0:00:24]} 63. Kf1 {[%emt 0:01:24]} Nxb6 {[%emt 0:00:12]} 64. Nxb6 {[%emt 0:00:07]} Rxb6 {[%emt 0:00:04]} 65. h3 {[%emt 0:02:01]} gxh3 {[%emt 0:00:09]} 66. Kg1 {[%emt 0:00:06]} a4 {[%emt 0:00:03]} 67. g4 {[%emt 0:00:08]} a3 {[%emt 0:00:03]} 68. g5 {[%emt 0:00:04]} a2 {[%emt 0:00:04]} 69. Kh2 {[%emt 0:00:20]} a1=Q {[%emt 0:00:08]} 70. Kg3 {[%emt 0:00:22]} Qg1+ {[%emt 0:00:12]} 71. Kf4 {[%emt 0:00:09]} h2 {[%emt 0:00:08]} 72. Ke4 {[%emt 0:00:14]} h1=Q+ {[%emt 0:00:15]} 73. Ke5 {[%emt 0:00:06]} Qxg5+ {[%emt 0:00:15]} 0-1